{"text_format":"1","workbook":"xlsx","n_sheets":5,"sheets":["Macro1","Macro2","Grade Curricular EC","Relatório Semestral","Relatório por Sem. Grade Curr."],"not_rendered":{"charts":2,"images":4,"macros":1,"external_links":0,"defined_names":0,"comments":1,"pivot_tables":2},"unopened":[],"bounds":{"document_bytes":16777216,"sheet_cells":100000,"rows_first":2000,"rows_last":500,"rows_between":2000,"halvings":0,"cell_chars":16384,"cell_head_chars":4096},"cells_cut":0,"cells_raw":0,"read":"whole","date_system":"1900"}

{"sheet":"Macro1","index":0,"n_rows":0,"n_cols":0,"rows_kept":0,"cut":false,"hidden":true,"merged":[]}

{"sheet":"Macro2","index":1,"n_rows":0,"n_cols":0,"rows_kept":0,"cut":false,"hidden":true,"merged":[]}

{"sheet":"Grade Curricular EC","index":2,"n_rows":55,"n_cols":34,"rows_kept":55,"cut":false,"hidden":false,"merged":[[8,16,9,16],[4,15,9,15],[4,16,5,16],[6,16,7,16],[33,15,39,16],[31,15,31,16],[29,15,29,16],[28,15,28,16],[15,15,26,16]]}
["2.0"]
[null,"Semestre","Nº","Disciplinas","NC","CH","CT","CP","CMSP","PR","Classe","Vencimento","Nota","Ano-Sem",null,"Média:",{"$f":"Tabela1[[#Totals],[Nota]]","v":0}]
[null,1,1,"Algoritmos e Programação",4,60,2,2,0,null,"P",null,null,null,null,"Concluido:",{"$f":"SUM(AH3:AH54)/Tabela1[[#Totals],[CH]]","v":0},null,null,null,null,null,null,null,null,null,null,null,null,null,null,null,{"$f":"Liberada($J3, $AF$3:$AF$54)","v":true},{"$f":"IF($AF3=TRUE,Tabela1[[#This Row],[CH]],0)","v":0}]
[null,1,2,"Cálculo I",4,60,4,0,0,null,"B",null,null,null,null,null,null,null,null,null,null,null,null,null,null,null,null,null,null,null,null,null,{"$f":"Liberada($J4, $AF$3:$AF$54)","v":true},{"$f":"IF($AF4=TRUE,Tabela1[[#This Row],[CH]],0)","v":0}]
[null,1,3,"Introdução à Arquitetura de Computadores",6,90,4,0,2,null,"P",null,null,null,null,"Legenda:","Componente Curricular Cursado",null,null,null,null,null,null,null,null,null,null,null,null,null,null,null,true,{"$f":"IF($AF5=TRUE,Tabela1[[#This Row],[CH]],0)","v":0}]
[null,1,4,"Geometria Analítica",4,60,4,0,0,null,"B",null,null,null,null,null,null,null,null,null,null,null,null,null,null,null,null,null,null,null,null,null,true,{"$f":"IF($AF6=TRUE,Tabela1[[#This Row],[CH]],0)","v":0}]
[null,1,5,"Produção Acadêmico Científica",2,30,1,1,0,null,"B",null,null,null,null,null,"Pré-Requisitos Alcançados",null,null,null,null,null,null,null,null,null,null,null,null,null,null,null,true,{"$f":"IF($AF7=TRUE,Tabela1[[#This Row],[CH]],0)","v":0}]
[null,1,6,"Introdução à Engenharia de Computação",4,60,1,1,2,null,"B",null,null,null,null,null,null,null,null,null,null,null,null,null,null,null,null,null,null,null,null,null,true,{"$f":"IF($AF8=TRUE,Tabela1[[#This Row],[CH]],0)","v":0}]
[null,2,7,"Física I",4,60,4,0,0,null,"B",null,null,null,null,null,"Falta de Pré-Requisito",null,null,null,null,null,null,null,null,null,null,null,null,null,null,null,true,{"$f":"IF($AF9=TRUE,Tabela1[[#This Row],[CH]],0)","v":0}]
[null,2,8,"Cálculo II",4,60,4,0,0,2,"B",null,null,null,null,null,null,null,null,null,null,null,null,null,null,null,null,null,null,null,null,null,false,{"$f":"IF($AF10=TRUE,Tabela1[[#This Row],[CH]],0)","v":0}]
[null,2,9,"Estruturas de Dados",6,90,3,1,2,1,"E",null,null,null,null,null,null,null,null,null,null,null,null,null,null,null,null,null,null,null,null,null,false,{"$f":"IF($AF11=TRUE,Tabela1[[#This Row],[CH]],0)","v":0}]
[null,2,10,"Laboratório de Programação I",2,30,0,2,0,1,"E",null,null,null,null,null,null,null,null,null,null,null,null,null,null,null,null,null,null,null,null,null,{"$f":"Liberada($J12, $AF$3:$AF$54)","v":false},{"$f":"IF($AF12=TRUE,Tabela1[[#This Row],[CH]],0)","v":0}]
[null,2,11,"Arquitetura e Organização de Computadores I",6,90,4,0,2,3,"P",null,null,null,null,null,null,null,null,null,null,null,null,null,null,null,null,null,null,null,null,null,{"$f":"Liberada($J13, $AF$3:$AF$54)","v":false},{"$f":"IF($AF13=TRUE,Tabela1[[#This Row],[CH]],0)","v":0}]
[null,2,12,"Laboratório de Física I",2,30,0,2,0,null,"B",null,null,null,null,null,null,null,null,null,null,null,null,null,null,null,null,null,null,null,null,null,true,{"$f":"IF($AF14=TRUE,Tabela1[[#This Row],[CH]],0)","v":0}]
[null,3,13,"Arquitetura e Organização de Computadores II",6,90,4,0,2,11,"E",null,null,null,null,null,null,null,null,null,null,null,null,null,null,null,null,null,null,null,null,null,false,{"$f":"IF($AF15=TRUE,Tabela1[[#This Row],[CH]],0)","v":0}]
[null,3,14,"Pesquisa e Classificação de Dados",6,90,3,1,2,9,"E",null,null,null,null,null,null,null,null,null,null,null,null,null,null,null,null,null,null,null,null,null,false,{"$f":"IF($AF16=TRUE,Tabela1[[#This Row],[CH]],0)","v":0}]
[null,3,15,"Laboratório de Programação II",2,30,0,2,0,"9;10","E",null,null,null,null,null,null,null,null,null,null,null,null,null,null,null,null,null,null,null,null,null,false,{"$f":"IF($AF17=TRUE,Tabela1[[#This Row],[CH]],0)","v":0}]
[null,3,16,"Física II",4,60,4,0,0,"2;7","B",null,null,null,null,null,null,null,null,null,null,null,null,null,null,null,null,null,null,null,null,null,false,{"$f":"IF($AF18=TRUE,Tabela1[[#This Row],[CH]],0)","v":0}]
[null,3,17,"Laboratório de Física II",2,30,0,2,0,"7;12","B",null,null,null,null,null,null,null,null,null,null,null,null,null,null,null,null,null,null,null,null,null,false,{"$f":"IF($AF19=TRUE,Tabela1[[#This Row],[CH]],0)","v":0}]
[null,3,18,"Cálculo III",4,60,4,0,0,8,"B",null,null,null,null,null,null,null,null,null,null,null,null,null,null,null,null,null,null,null,null,null,false,{"$f":"IF($AF20=TRUE,Tabela1[[#This Row],[CH]],0)","v":0}]
[null,4,19,"Probabilidade e Estatística",4,60,4,0,0,2,"E",null,null,null,null,null,null,null,null,null,null,null,null,null,null,null,null,null,null,null,null,null,false,{"$f":"IF($AF21=TRUE,Tabela1[[#This Row],[CH]],0)","v":0}]
[null,4,20,"Programação Orientada a Objetos",6,90,3,1,2,9,"E",null,null,null,null,null,null,null,null,null,null,null,null,null,null,null,null,null,null,null,null,null,false,{"$f":"IF($AF22=TRUE,Tabela1[[#This Row],[CH]],0)","v":0}]
[null,4,21,"Física III",4,60,4,0,0,"8;16","B",null,null,null,null,null,null,null,null,null,null,null,null,null,null,null,null,null,null,null,null,null,false,{"$f":"IF($AF23=TRUE,Tabela1[[#This Row],[CH]],0)","v":0}]
[null,4,22,"Laboratório de Física III",2,30,0,2,0,"16;17","B",null,null,null,null,null,null,null,null,null,null,null,null,null,null,null,null,null,null,null,null,null,false,{"$f":"IF($AF24=TRUE,Tabela1[[#This Row],[CH]],0)","v":0}]
[null,4,23,"Ciências do Ambiente",2,30,2,0,0,null,"B",null,null,null,null,null,null,null,null,null,null,null,null,null,null,null,null,null,null,null,null,null,true,{"$f":"IF($AF25=TRUE,Tabela1[[#This Row],[CH]],0)","v":0}]
[null,4,24,"Lógica para Computação",4,60,4,0,0,null,"E",null,null,null,null,null,null,null,null,null,null,null,null,null,null,null,null,null,null,null,null,null,true,{"$f":"IF($AF26=TRUE,Tabela1[[#This Row],[CH]],0)","v":0}]
[null,5,25,"Equações Diferenciais",4,60,4,0,0,"18;4","B",null,null,null,null,null,null,null,null,null,null,null,null,null,null,null,null,null,null,null,null,null,false,{"$f":"IF($AF27=TRUE,Tabela1[[#This Row],[CH]],0)","v":0}]
[null,5,26,"Engenharia de Software",6,90,4,0,2,20,"E",null,null,null,null,null,null,null,null,null,null,null,null,null,null,null,null,null,null,null,null,null,false,{"$f":"IF($AF28=TRUE,Tabela1[[#This Row],[CH]],0)","v":0}]
[null,5,27,"Técnicas Digitais",6,90,2,2,2,"3;24","P",null,null,null,null,"Universidade Federal do Pampa - UNIPAMPA/Bagé",null,null,null,null,null,null,null,null,null,null,null,null,null,null,null,null,false,{"$f":"IF($AF29=TRUE,Tabela1[[#This Row],[CH]],0)","v":0}]
[null,5,28,"Matemática Discreta",4,60,4,0,0,24,"P",null,null,null,null,"Curso de Gradução em Engenharia de Computação",null,null,null,null,null,null,null,null,null,null,null,null,null,null,null,null,false,{"$f":"IF($AF30=TRUE,Tabela1[[#This Row],[CH]],0)","v":0}]
[null,5,29,"Sistemas Operacionais",6,90,4,0,2,"9;13","E",null,null,null,null,null,null,null,null,null,null,null,null,null,null,null,null,null,null,null,null,null,false,{"$f":"IF($AF31=TRUE,Tabela1[[#This Row],[CH]],0)","v":0}]
[null,6,30,"Processamento Digital de Sinais",4,60,3,1,0,"1;8;16","E",null,null,null,null,"Desenvolvida por: César Huegel",null,null,null,null,null,null,null,null,null,null,null,null,null,null,null,null,false,{"$f":"IF($AF32=TRUE,Tabela1[[#This Row],[CH]],0)","v":0}]
[null,6,31,"Sistemas Digitais",6,90,2,2,2,"13;27","E",null,null,null,null,null,"Versão 2.0: Julho de 2015",null,null,null,null,null,null,null,null,null,null,null,null,null,null,null,false,{"$f":"IF($AF33=TRUE,Tabela1[[#This Row],[CH]],0)","v":0}]
[null,6,32,"Mecânica Geral",4,60,4,0,0,"7;8","B",null,null,null,null,null,null,null,null,null,null,null,null,null,null,null,null,null,null,null,null,null,false,{"$f":"IF($AF34=TRUE,Tabela1[[#This Row],[CH]],0)","v":0}]
[null,6,33,"Teoria da Computação",6,90,4,0,2,"24;28","E",null,null,null,null,null,null,null,null,null,null,null,null,null,null,null,null,null,null,null,null,null,false,{"$f":"IF($AF35=TRUE,Tabela1[[#This Row],[CH]],0)","v":0}]
[null,6,34,"Circuitos Elétricos I",4,60,3,1,0,"21;25","B",null,null,null,null,null,null,null,null,null,null,null,null,null,null,null,null,null,null,null,null,null,false,{"$f":"IF($AF36=TRUE,Tabela1[[#This Row],[CH]],0)","v":0}]
[null,7,35,"Análise e Projeto de Algoritmos",4,60,4,0,0,"14;28","E",null,null,null,null,null,null,null,null,null,null,null,null,null,null,null,null,null,null,null,null,null,false,{"$f":"IF($AF37=TRUE,Tabela1[[#This Row],[CH]],0)","v":0}]
[null,7,36,"Fundamentos de Administração",2,30,2,0,0,null,"B",null,null,null,null,null,null,null,null,null,null,null,null,null,null,null,null,null,null,null,null,null,true,{"$f":"IF($AF38=TRUE,Tabela1[[#This Row],[CH]],0)","v":0}]
[null,7,37,"Redes de Computadores",6,90,4,0,2,29,"E",null,null,null,null,null,null,null,null,null,null,null,null,null,null,null,null,null,null,null,null,null,false,{"$f":"IF($AF39=TRUE,Tabela1[[#This Row],[CH]],0)","v":0}]
[null,7,38,"Desenho Técnico I",4,60,2,2,0,null,"B",null,null,null,null,null,null,null,null,null,null,null,null,null,null,null,null,null,null,null,null,null,true,{"$f":"IF($AF40=TRUE,Tabela1[[#This Row],[CH]],0)","v":0}]
[null,7,39,"Fundamentos de Eletrônica",4,60,4,0,0,34,"P",null,null,null,null,null,null,null,null,null,null,null,null,null,null,null,null,null,null,null,null,null,false,{"$f":"IF($AF41=TRUE,Tabela1[[#This Row],[CH]],0)","v":0}]
[null,8,40,"Projeto de Pesquisa em Engenharia de Computação",2,30,2,0,0,"5;19;31;34","E",null,null,null,null,null,null,null,null,null,null,null,null,null,null,null,null,null,null,null,null,null,false,{"$f":"IF($AF42=TRUE,Tabela1[[#This Row],[CH]],0)","v":0}]
[null,8,41,"Projeto de Sistemas Embarcados",6,90,2,2,2,"29;31","E",null,null,null,null,null,null,null,null,null,null,null,null,null,null,null,null,null,null,null,null,null,false,{"$f":"IF($AF43=TRUE,Tabela1[[#This Row],[CH]],0)","v":0}]
[null,8,42,"Laboratório de Química Geral",2,30,0,2,0,null,"B",null,null,null,null,null,null,null,null,null,null,null,null,null,null,null,null,null,null,null,null,null,true,{"$f":"IF($AF44=TRUE,Tabela1[[#This Row],[CH]],0)","v":0}]
[null,8,43,"Química Geral",4,60,4,0,0,null,"B",null,null,null,null,null,null,null,null,null,null,null,null,null,null,null,null,null,null,null,null,null,true,{"$f":"IF($AF45=TRUE,Tabela1[[#This Row],[CH]],0)","v":0}]
[null,8,44,"Concepção de Circuitos Integrados",4,60,4,0,0,"31;39","E",null,null,null,null,null,null,null,null,null,null,null,null,null,null,null,null,null,null,null,null,null,false,{"$f":"IF($AF46=TRUE,Tabela1[[#This Row],[CH]],0)","v":0}]
[null,8,45,"Circuitos Elétricos II",4,60,3,1,0,34,"P",null,null,null,null,null,null,null,null,null,null,null,null,null,null,null,null,null,null,null,null,null,false,{"$f":"IF($AF47=TRUE,Tabela1[[#This Row],[CH]],0)","v":0}]
[null,9,46,"Trabalho de Conclusão de Curso I",10,150,10,0,0,40,"E",null,null,null,null,null,null,null,null,null,null,null,null,null,null,null,null,null,null,null,null,null,false,{"$f":"IF($AF48=TRUE,Tabela1[[#This Row],[CH]],0)","v":0}]
[null,9,47,"Ciência dos Materiais",4,60,3,1,0,43,"B",null,null,null,null,null,null,null,null,null,null,null,null,null,null,null,null,null,null,null,null,null,false,{"$f":"IF($AF49=TRUE,Tabela1[[#This Row],[CH]],0)","v":0}]
[null,9,48,"Economia Industrial",2,30,2,0,0,2,"B",null,null,null,null,null,null,null,null,null,null,null,null,null,null,null,null,null,null,null,null,null,false,{"$f":"IF($AF50=TRUE,Tabela1[[#This Row],[CH]],0)","v":0}]
[null,9,49,"Fenômenos de Transporte",4,60,3,1,0,"16;25","B",null,null,null,null,null,null,null,null,null,null,null,null,null,null,null,null,null,null,null,null,null,false,{"$f":"IF($AF51=TRUE,Tabela1[[#This Row],[CH]],0)","v":0}]
[null,9,50,"Cálculo Numérico",4,60,4,0,0,"1;25","E",null,null,null,null,null,null,null,null,null,null,null,null,null,null,null,null,null,null,null,null,null,false,{"$f":"IF($AF52=TRUE,Tabela1[[#This Row],[CH]],0)","v":0}]
[null,10,51,"Trabalho de Conclusão de Curso II",10,150,10,0,0,46,"E",null,null,null,null,null,null,null,null,null,null,null,null,null,null,null,null,null,null,null,null,null,false,{"$f":"IF($AF53=TRUE,Tabela1[[#This Row],[CH]],0)","v":0}]
[null,10,52,"Estágio Obrigatório",12,180,12,0,0,40,"E",null,null,null,null,null,null,null,null,null,null,null,null,null,null,null,null,null,null,null,null,null,false,{"$f":"IF($AF54=TRUE,Tabela1[[#This Row],[CH]],0)","v":0}]
[null,"Total",null,null,{"$f":"SUBTOTAL(109,Tabela1[NC])","v":232},{"$f":"SUBTOTAL(109,Tabela1[CH])","v":3480},{"$f":"SUBTOTAL(109,Tabela1[CT])","v":172},{"$f":"SUBTOTAL(109,Tabela1[CP])","v":32},{"$f":"SUBTOTAL(109,Tabela1[CMSP])","v":28},null,null,null,{"$f":"IFERROR(SUBTOTAL(101,Tabela1[Nota]), 0)","v":0}]

{"sheet":"Relatório Semestral","index":3,"n_rows":3,"n_cols":3,"rows_kept":3,"cut":false,"hidden":false,"merged":[]}
[]
[null,"Ano-Sem ","Média"]
[null,"Média Geral"]

{"sheet":"Relatório por Sem. Grade Curr.","index":4,"n_rows":3,"n_cols":3,"rows_kept":3,"cut":false,"hidden":false,"merged":[]}
[]
[null,"Semestre","Média"]
[null,"Média Geral"]